bitfinex/quotes_ETHUSD_20250331
["timestamp","ask_amount","ask_price","bid_price","bid_amount"]
[1743408300779,5.53434,1806.9,1806.8,5.955]
[1743408301347,5.53499,1806.7,1806.3,5.53608]
[1743408301562,9.96663966,1807.0,1806.5,0.815]
[1743408301732,6.34252,1807.2,1806.6,5.59045232]
[1743408301935,9.15653966,1807.3,1806.9,0.815]
[1743408302174,11.06721,1807.2,1807.0,5.963]
[1743408302339,9.15646966,1807.3,1807.0,11.55223505]
[1743408302533,6.34194,1807.4,1807.0,11.4969]
[1743408302745,9.15584966,1807.5,1807.1,5.58898007]
[1743408303081,5.53313,1807.3,1807.0,5.963]
[1743408303243,11.0658,1807.4,1807.1,5.53372]
[1743408303591,3.62330966,1807.5,1807.0,5.963]
[1743408303868,5.53372,1807.1,1807.0,20.463]
[1743408304036,5.53403,1807.0,1806.9,31.94]
[1743408304238,5.53403,1807.0,1806.6,6.33555]
[1743408304239,1.55166597,1807.0,1806.2,5.53645]
[1743408304435,9.98389966,1806.7,1806.3,5.983]
[1743408304671,4.44890966,1806.7,1806.3,5.983]
[1743408304883,5.53666,1806.2,1805.9,31.94]
[1743408305038,4.44890966,1806.3,1806.0,5.989]
[1743408305240,4.44890966,1806.3,1805.9,31.94]
[1743408305241,9.16012966,1806.1,1805.9,31.94]
[1743408305450,9.16012966,1806.1,1806.0,5.989]
[1743408308054,5.53814,1805.7,1805.4,0.8003]
[1743408308265,5.53847,1805.6,1805.5,5.975]
[1743408308671,9.16144966,1805.7,1805.5,5.975]
[1743408308843,5.53832,1805.6,1805.5,5.975]
[1743408309177,5.53869,1805.5,1805.2,32.7443]
[1743408309358,5.53869,1805.5,1805.3,5.973]
[1743408309559,5.53924,1805.3,1805.2,31.944]
[1743408309763,5.53924,1805.3,1805.2,37.915]
[1743408309970,3.62330966,1805.3,1805.2,37.915]
[1743408310170,4.44890966,1805.5,1805.2,37.915]
[1743408310367,3.62330966,1805.7,1805.3,5.987]
[1743408310570,4.44890966,1805.8,1805.4,5.53869]
[1743408310886,3.62330966,1805.8,1805.5,5.59388932]
[1743408311087,5.53811,1805.7,1805.3,12.32651]
[1743408311391,11.07635,1805.7,1805.3,12.32651]
[1743408311674,9.16104966,1805.8,1805.4,5.59430121]
[1743408311845,9.16104966,1805.8,1805.4,11.13312121]
[1743408312045,9.15978966,1806.3,1805.9,5.53726]
[1743408312245,9.15978966,1806.3,1806.0,11.52304]
[1743408312456,5.53672,1806.2,1806.0,5.986]
[1743408312674,5.53679,1806.1,1806.0,5.986]
[1743408312969,10.26745066,1806.1,1806.0,5.986]
[1743408313275,10.26745066,1806.1,1805.6,6.33848]
[1743408313276,5.53749,1805.9,1805.7,14.5]
[1743408313580,5.53712,1806.0,1805.8,5.993]
[1743408313787,5.53727,1806.0,1805.8,5.993]
[1743408314594,9.98571966,1806.1,1805.8,20.493]
[1743408314948,5.53715,1806.0,1805.8,20.493]
[1743408315171,9.98571966,1806.1,1805.8,20.493]
[1743408315565,9.98571966,1806.1,1805.8,5.993]
[1743408316156,15.52279966,1806.1,1805.8,5.993]
[1743408316352,5.53724,1806.0,1805.8,5.993]
[1743408316584,9.98571966,1806.1,1805.8,11.5307]
[1743408316883,9.98571966,1806.1,1805.8,5.993]
[1743408317208,5.53784,1805.8,1805.6,0.8003]
[1743408317504,5.53784,1805.8,1805.4,5.53873]
[1743408317505,5.53784,1805.8,1805.7,5.971]
[1743408318003,9.16075966,1805.9,1805.7,5.971]
[1743408318161,5.53712,1806.0,1805.7,11.50899]
[1743408318359,0.7535,1806.8,1806.5,5.53537]
[1743408318583,0.99112897,1806.8,1806.6,6.0]
[1743408318785,0.99112897,1806.8,1806.6,11.53518]
[1743408319001,9.15778966,1806.9,1806.6,6.0]
[1743408319173,9.15825966,1806.7,1806.6,6.0]
[1743408319967,3.62330966,1806.7,1806.6,6.0]
[1743408320300,9.15825966,1806.7,1806.6,6.0]
[1743408320509,5.53477,1806.8,1806.6,6.0]
[1743408320804,14.69223966,1806.9,1806.6,6.0]
[1743408321101,11.06949,1806.8,1806.6,6.0]
[1743408321526,5.53467,1806.8,1806.6,6.0]
[1743408321664,5.53467,1806.8,1806.3,0.758]
[1743408322011,14.69479966,1806.5,1806.4,5.986]
[1743408322172,17.69479966,1806.5,1806.4,5.986]
[1743408324395,6.62330966,1806.5,1806.4,5.986]
[1743408324589,3.62330966,1806.5,1806.1,31.955]
[1743408324786,9.15900966,1806.5,1806.2,5.986]
[1743408324991,9.15840966,1806.7,1806.2,5.986]
[1743408325200,3.62330966,1806.7,1806.4,5.53576]
[1743408325403,3.62330966,1806.7,1806.4,11.0715]
[1743408325603,3.62330966,1806.7,1806.2,5.986]
[1743408325932,11.07071,1806.6,1806.2,11.52248]
[1743408326101,11.07074,1806.6,1806.2,11.52248]
[1743408326288,5.53525,1806.6,1806.2,17.05887]
[1743408326488,5.53525,1806.6,1806.2,11.52239]
[1743408326489,11.07069,1806.6,1806.2,11.52239]
[1743408326689,5.53525,1806.6,1806.2,11.52246]
[1743408326890,11.07071,1806.6,1806.3,5.53604]
[1743408327092,5.53525,1806.6,1806.3,5.53604]
[1743408327287,11.07074,1806.6,1806.2,11.52246]
[1743408327491,11.07074,1806.6,1806.2,17.05879]
[1743408327718,11.07074,1806.6,1806.2,17.0587]
[1743408327920,9.15828966,1806.7,1806.3,5.53606]
[1743408328123,3.62330966,1807.0,1806.5,0.758]
[1743408328321,5.53387,1807.1,1806.7,5.53472]
[1743408328618,5.53438,1806.9,1806.6,11.53014]
[1743408328818,5.53438,1806.9,1806.6,6.96100387]
[1743408329020,5.53474,1806.8,1806.6,5.995]
[1743408329519,14.69155966,1807.0,1806.6,11.5302]
[1743408329816,0.7985,1806.9,1806.6,5.995]
[1743408330018,0.7985,1806.9,1806.5,14.5]
[1743408330019,5.53521,1806.7,1806.5,5.993]
[1743408330221,9.15855966,1806.6,1806.5,5.993]
[1743408330429,3.62330966,1807.1,1806.6,0.7959]
[1743408330603,0.7985,1807.2,1806.9,5.53431]
[1743408330925,4.42180966,1807.6,1807.1,5.53367]
[1743408331125,5.97488097,1807.5,1807.2,6.023]
[1743408331332,5.97488097,1807.5,1807.2,6.17008321]
[1743408331621,5.97485097,1807.5,1807.2,6.17008321]
[1743408331931,5.53285,1807.4,1807.2,6.17008321]
[1743408332425,6.33161,1807.3,1807.2,0.14708321]
[1743408332629,5.53378,1807.1,1806.8,11.56354]
[1743408332830,9.15762966,1807.0,1806.8,6.029]
[1743408333021,5.53537,1806.6,1806.3,0.7959]
[1743408333225,9.15867966,1806.6,1806.4,6.038]
[1743408333531,5.53556,1806.5,1806.4,6.038]
[1743408334135,5.53556,1806.5,1806.3,0.05535608]
[1743408334308,9.15867966,1806.6,1806.3,0.05535608]
[1743408334309,3.62330966,1806.6,1806.4,6.031]
[1743408334515,11.0702,1806.7,1806.4,6.031]
[1743408334823,14.07028,1806.7,1806.4,6.031]
[1743408335330,5.53526,1806.6,1806.4,6.031]
[1743408335527,5.53556,1806.5,1806.4,6.031]
[1743408336035,1.905582,1806.5,1806.1,31.955]
[1743408336335,5.53648,1806.2,1806.1,37.972]
[1743408336630,8.53648,1806.2,1806.1,31.955]
[1743408336847,8.53679,1806.1,1806.0,6.029]
[1743408337145,9.33529,1806.1,1806.0,6.029]
[1743408337832,5.53773,1805.8,1805.5,0.7959]
[1743408338035,5.53843,1805.6,1805.4,31.947]
[1743408338238,5.53843,1805.6,1805.5,6.02]
[1743408338938,6.33693,1805.6,1805.5,6.02]
[1743408339437,5.53863,1805.5,1805.4,31.947]
[1743408339625,5.53863,1805.5,1805.4,37.969]
[1743408339820,8.53863,1805.5,1805.4,31.947]
[1743408340014,8.53863,1805.5,1805.4,37.967]
[1743408340538,3.0,1805.5,1805.4,37.967]
[1743408340702,6.33614,1805.9,1805.5,5.53849]
[1743408340903,3.0,1805.9,1805.5,6.3345]
[1743408341146,8.53751,1805.9,1805.6,5.53827]
[1743408341320,5.53718,1806.0,1805.6,11.13176505]
[1743408341565,5.53681,1806.1,1805.7,5.53782]
[1743408341856,3.0,1806.0,1805.8,6.034]
[1743408342222,14.07459,1806.0,1805.8,6.034]
[1743408342832,8.53725,1806.0,1805.8,6.034]
[1743408343018,3.0,1806.2,1805.8,11.57158]
[1743408343226,3.0,1806.0,1805.8,6.034]
[1743408343439,8.53618,1806.3,1805.8,11.57157]
[1743408343609,5.53658,1806.2,1805.8,11.57157]
[1743408343813,11.07331,1806.2,1805.8,11.57157]
[1743408344010,8.5371,1806.0,1805.8,6.034]
[1743408344345,5.53651,1806.2,1805.8,11.5716]
[1743408344547,5.53651,1806.2,1805.9,5.5374]
[1743408344760,0.7839,1806.6,1806.0,0.8248]
[1743408345038,5.53498,1806.7,1806.4,5.53583]
[1743408345213,3.0,1806.6,1806.5,6.013]
[1743408345419,3.0,1806.6,1806.5,11.54856]
[1743408345614,5.53463,1806.9,1806.6,5.53523]
[1743408345814,3.0,1806.8,1806.5,11.54856]
[1743408346340,8.53467,1806.8,1806.5,6.013]
[1743408346724,5.53372,1807.1,1806.7,5.53485]
[1743408347131,5.53372,1807.1,1806.7,5.53478]
[1743408347314,3.0,1807.0,1806.7,11.06956]
[1743408347514,3.88149033,1807.5,1806.8,5.53448]
[1743408347714,3.88149033,1807.5,1806.7,5.53478]
[1743408347715,5.53403,1807.0,1806.9,6.037]
[1743408348140,8.53403,1807.0,1806.9,6.037]
[1743408348544,5.53525,1806.7,1806.6,6.039]
[1743408348740,8.53525,1806.7,1806.6,6.039]
[1743408349052,3.0,1806.7,1806.6,6.039]
[1743408349236,3.0,1806.7,1806.6,11.57425]
[1743408349423,3.0,1806.7,1806.6,6.039]
[1743408350431,3.0,1806.7,1806.6,11.57425]
[1743408351413,6.31764,1807.1,1806.7,5.53484]
[1743408351645,3.0,1807.0,1806.7,5.5348]
[1743408351943,3.0,1807.0,1806.8,5.5346]
[1743408352142,3.0,1807.0,1806.8,0.13801609]
[1743408352324,3.0,1807.0,1806.8,5.67261609]
[1743408352657,1.80381303,1807.1,1806.8,5.67261609]
[1743408352871,0.92336474,1807.7,1807.3,5.53311]
[1743408352872,0.7839,1807.4,1807.3,5.53311]
[1743408353047,5.90540474,1807.7,1807.3,6.032]
[1743408353048,5.53232,1807.6,1807.3,6.032]
[1743408353232,5.53232,1807.6,1807.3,11.69728483]
[1743408353550,5.5328,1807.4,1807.3,6.16419483]
[1743408353951,8.5328,1807.4,1807.3,6.16419483]
[1743408354157,10.723242,1807.4,1807.3,0.13219483]
[1743408354556,16.256242,1807.4,1807.0,11.56588]
[1743408354854,16.256342,1807.4,1807.0,11.56588]
[1743408355025,16.256342,1807.4,1807.1,0.13043181]
[1743408355026,3.0,1807.2,1807.1,0.13043181]
[1743408356353,3.0,1807.3,1807.1,5.66415181]
[1743408356559,3.0,1807.3,1807.1,0.13043181]
[1743408357448,4.6256302,1807.3,1807.1,0.13043181]
[1743408357650,10.1587402,1807.3,1807.1,0.13043181]
[1743408357859,4.6256302,1807.3,1807.1,5.66397181]
[1743408358255,10.1587802,1807.3,1807.1,0.13043181]
[1743408358628,5.53403,1807.0,1806.9,6.016]
[1743408358828,8.53342,1807.2,1806.9,11.68116313]
[1743408359030,5.53374,1807.1,1806.9,6.14684313]
[1743408359247,4.01590502,1807.2,1806.9,6.14684313]
[1743408359548,3.0,1807.2,1806.9,17.21517313]
[1743408359753,3.0,1807.2,1807.0,5.53398]
[1743408359954,15.50206788,1807.6,1807.1,0.833]
[1743408360257,5.53251,1807.5,1807.2,5.53332]
[1743408360423,5.53225,1807.6,1807.3,6.018]
[1743408360628,14.68408788,1807.6,1807.4,0.13096066]
[1743408360956,5.53252,1807.5,1807.3,6.018]
[1743408361571,5.5328,1807.4,1807.3,6.018]
[1743408361771,6.44771679,1807.5,1807.3,6.018]
[1743408362056,3.0,1807.5,1807.3,11.55095]
[1743408362353,3.0,1807.5,1807.3,11.55107]
[1743408362522,12.15138788,1807.7,1807.3,11.55107]
[1743408362725,13.44831667,1807.7,1807.3,11.55107]
[1743408362962,3.0,1807.5,1807.3,11.55107]
[1743408363159,3.0,1807.6,1807.3,11.55095]
[1743408363357,8.53229,1807.6,1807.3,11.55095]
[1743408363653,5.53251,1807.5,1807.3,6.018]
[1743408364264,11.06519,1807.5,1807.3,6.018]
[1743408364452,5.53251,1807.5,1807.3,6.018]
[1743408364961,8.53223,1807.6,1807.3,6.018]
[1743408365158,7.91637667,1807.7,1807.3,6.018]
[1743408365330,3.0,1807.5,1807.3,11.55102]
[1743408365763,3.0,1807.2,1807.0,31.94]
[1743408366461,8.53342,1807.2,1807.1,5.999]
[1743408367063,8.53342,1807.2,1807.1,6.1244376]
[1743408368346,9.35082,1807.4,1807.1,6.1244376]
[1743408368542,14.06596,1807.4,1807.1,6.1244376]
[1743408368741,8.53342,1807.2,1807.1,6.1244376]
[1743408369445,8.53342,1807.2,1807.1,0.1254376]
[1743408369764,8.53403,1807.0,1806.9,5.979]
[1743408370340,5.53451,1806.9,1806.6,31.938]
[1743408370536,5.53474,1806.8,1806.6,31.938]
[1743408370744,5.53495,1806.7,1806.6,31.938]
[1743408371061,3.0,1806.9,1806.6,43.44818]
[1743408371248,11.0683,1807.0,1806.6,43.44813]
[1743408371443,9.15332788,1807.1,1806.7,5.53485]
[1743408371772,11.06973,1806.8,1806.6,37.913]
[1743408371976,5.53495,1806.7,1806.6,37.913]
[1743408373342,13.89663688,1806.7,1806.6,31.938]
[1743408373656,5.53556,1806.5,1806.4,5.966]
[1743408373856,12.15500788,1806.5,1806.4,5.966]
[1743408374251,3.61944788,1806.5,1806.1,0.833]
[1743408374568,4.43734788,1807.0,1806.7,5.53489]
[1743408374745,8.53434,1806.9,1806.7,5.975]
[1743408374944,3.0,1806.9,1806.7,5.975]
[1743408375146,8.53436,1806.9,1806.7,5.975]
[1743408375466,5.53464,1806.8,1806.7,5.975]
[1743408375639,12.15408788,1806.8,1806.7,5.975]
[1743408375834,15.57237867,1806.8,1806.7,5.975]
[1743408376266,11.07101,1806.6,1806.3,6.776]
[1743408376477,5.53546,1806.6,1806.3,6.776]
[1743408376674,11.0709,1806.6,1806.3,6.776]
[1743408376838,4.41544788,1806.8,1806.3,12.36748629]
[1743408377038,3.0,1807.0,1806.5,5.5353]
[1743408377039,5.53439,1806.9,1806.5,5.5353]
[1743408377243,3.0,1806.7,1806.5,5.5353]
[1743408377636,3.0,1806.7,1806.5,11.07073]
[1743408377841,3.0,1806.9,1806.3,12.31204]
[1743408378041,11.07034,1806.7,1806.3,17.8481]
[1743408378240,5.53517,1806.7,1806.3,17.8481]
[1743408378768,3.0,1806.7,1806.3,6.776]
[1743408378974,5.53587,1806.4,1806.3,5.983]
[1743408379342,5.53531,1806.6,1806.3,11.51903]
[1743408379765,5.5356,1806.5,1806.3,5.983]
[1743408380171,11.07074,1806.6,1806.3,5.983]
[1743408380375,5.53531,1806.6,1806.3,5.983]
[1743408381073,5.53531,1806.6,1806.3,11.51913]
[1743408381371,3.61944788,1806.4,1806.1,0.793]
[1743408381541,5.53648,1806.2,1806.1,5.98]
[1743408381746,5.5362,1806.3,1806.1,5.98]
[1743408382060,9.15533788,1806.4,1806.1,5.98]
[1743408382268,8.53623,1806.3,1806.2,0.11565235]
[1743408382674,8.53623,1806.3,1806.1,5.976]
[1743408382842,8.53623,1806.3,1806.2,0.11629794]
[1743408383342,14.07258,1806.3,1806.2,0.11723712]
[1743408383554,14.07258,1806.3,1806.1,5.976]
[1743408383842,5.53698,1806.1,1806.0,5.964]
[1743408384243,11.07402,1806.1,1805.9,31.94]
[1743408384471,5.5365,1806.2,1806.0,5.961]
[1743408384681,3.0,1806.2,1806.0,5.961]
[1743408384976,8.53623,1806.3,1806.0,11.49798]
[1743408385370,5.53547,1806.6,1806.2,0.793]
[1743408385574,5.53577,1806.5,1806.2,0.793]
[1743408385877,5.53598,1806.4,1806.2,0.793]
[1743408386270,11.07202,1806.4,1806.0,12.29098]
[1743408386471,5.53622,1806.3,1806.0,12.29094]
[1743408386647,5.53622,1806.3,1806.0,6.754]
[1743408386648,11.0726,1806.3,1806.0,6.754]
[1743408386851,5.53622,1806.3,1806.0,6.754]
[1743408387163,5.53589,1806.4,1806.1,5.53678]
[1743408387348,5.53676,1806.2,1806.0,5.961]
[1743408387549,5.53619,1806.3,1806.0,5.961]
[1743408387755,3.61944788,1806.4,1806.0,5.961]
[1743408387958,8.5364,1806.3,1806.0,5.961]
[1743408388376,5.53658,1806.2,1806.0,5.961]
[1743408388572,11.07329,1806.2,1806.0,5.961]
[1743408388776,8.53618,1806.3,1806.0,11.49795]
[1743408388976,3.0,1806.3,1806.0,17.0349]
[1743408389149,3.0,1806.3,1806.0,11.49795]
[1743408389348,5.53597,1806.4,1806.0,11.49795]
[1743408389560,0.827,1807.0,1806.3,5.53617]
[1743408389765,6.36115,1807.0,1806.7,5.53494]
[1743408390262,9.15325788,1807.1,1806.8,11.48957]
[1743408390472,5.53348,1807.2,1806.9,0.7848]
[1743408390654,5.53377,1807.1,1806.9,0.7848]
[1743408390855,6.61944788,1807.1,1806.8,5.955]
[1743408391061,14.06885,1806.9,1806.6,32.7358]
[1743408391282,4.44644788,1806.7,1806.2,6.7718]
[1743408391493,5.53554,1806.6,1806.2,6.7718]
[1743408391652,5.53558,1806.5,1806.2,12.36362883]
[1743408391984,5.53558,1806.5,1806.2,17.84466]
[1743408392201,5.53554,1806.6,1806.2,17.84466]
[1743408392480,11.07099,1806.6,1806.2,17.84466]
[1743408392785,4.44644788,1806.7,1806.2,12.30826]
[1743408393084,5.53525,1806.6,1806.2,12.30826]
[1743408393472,5.53525,1806.6,1806.2,17.8446]
[1743408393671,5.53525,1806.6,1806.3,5.59136726]
[1743408393873,9.98140788,1806.7,1806.4,5.53585]
[1743408394083,8.53467,1806.8,1806.4,5.53585]
[1743408394275,5.53507,1806.7,1806.4,5.53585]
[1743408394471,11.07024,1806.7,1806.3,11.07215]
[1743408394650,5.53507,1806.7,1806.3,11.07215]
[1743408394855,5.53507,1806.7,1806.3,5.53601]
[1743408394856,9.15451788,1806.7,1806.3,5.53601]
[1743408395083,9.15451788,1806.7,1806.4,5.53584]
[1743408395384,3.61944788,1806.7,1806.4,11.07159]
[1743408395685,5.53503,1806.7,1806.4,5.53575]
[1743408395881,14.06966,1806.8,1806.4,5.53575]
[1743408396073,9.15462788,1806.7,1806.4,5.959]
[1743408396599,3.0,1806.8,1806.6,5.53499]
[1743408396896,6.36091,1807.1,1806.7,11.06965]
[1743408397095,3.0,1807.0,1806.8,5.957]
[1743408397279,8.53407,1807.0,1806.8,5.957]
[1743408398850,9.15289788,1807.2,1806.8,5.957]
[1743408399051,9.15289788,1807.2,1806.9,5.53424]
[1743408400711,5.53372,1807.1,1806.8,11.49154]
[1743408401204,3.0,1806.9,1806.8,5.935]
[1743408401395,8.53449,1806.9,1806.8,5.935]
[1743408401686,3.61944788,1807.0,1806.8,5.935]
[1743408401910,5.53378,1807.1,1806.8,11.46964]
[1743408402085,3.0,1807.1,1806.8,11.46955]
[1743408402268,5.53414,1807.0,1806.8,5.935]
[1743408402596,3.61944788,1807.0,1806.8,5.935]
[1743408402786,11.06777,1807.1,1806.8,5.935]
[1743408403478,5.5342,1807.0,1806.8,5.935]
[1743408403672,9.15364788,1807.0,1806.8,5.935]
[1743408403872,5.53434,1806.9,1806.8,5.935]
[1743408404260,4.95676788,1807.0,1806.4,6.30746]
[1743408404455,10.49088788,1807.0,1806.7,5.53494]
[1743408404656,9.93746788,1807.0,1806.7,5.53494]
[1743408404962,5.53414,1807.0,1806.7,11.06975]
[1743408405265,5.53414,1807.0,1806.7,5.53481]
[1743408405467,5.53414,1807.0,1806.7,11.06963]
[1743408405675,8.53379,1807.1,1806.7,11.06963]
[1743408405884,8.53379,1807.1,1806.8,5.53453]
[1743408406088,8.53379,1807.1,1806.8,11.06907]
[1743408406385,8.53379,1807.1,1806.8,5.53453]
[1743408407283,8.53379,1807.1,1806.9,5.905]
[1743408407491,5.1347216,1807.7,1807.1,0.7716]
[1743408407665,0.73137372,1807.7,1807.6,5.53219]
[1743408407867,5.63137,1807.9,1807.6,5.97132258]
[1743408408187,5.63137,1807.9,1807.6,5.916]
[1743408408488,3.1,1807.9,1807.7,5.53188]
[1743408408695,0.1,1807.9,1807.8,5.53158]
[1743408408989,0.1,1807.9,1807.8,6.35848657]
[1743408409594,0.1,1807.9,1807.8,6.30318]
[1743408410062,0.1,1807.9,1807.8,6.35848385]
[1743408410264,0.1,1807.9,1807.8,6.30318]
[1743408410495,0.1,1807.9,1807.8,6.85318]
[1743408410656,3.61944788,1808.8,1808.1,0.7716]
[1743408410860,3.61944788,1808.4,1808.2,5.925]
[1743408411520,9.14936788,1808.4,1808.2,5.925]
[1743408411683,5.52992,1808.4,1808.2,5.925]
[1743408412008,5.53005,1808.3,1808.2,5.925]
[1743408412160,3.0,1808.5,1808.2,12.22683]
[1743408412367,8.52956,1808.5,1808.2,6.6966]
[1743408412764,3.0,1808.5,1808.2,12.22692]
[1743408412965,3.0,1808.5,1808.2,12.22684]
[1743408413302,3.0,1808.5,1808.2,12.22677]
[1743408413476,8.52946,1808.5,1808.2,6.6966]
[1743408414202,6.31379,1808.4,1808.2,5.925]
[1743408414590,4.40334788,1808.6,1808.2,5.925]
[1743408414891,11.05936,1808.5,1808.2,5.925]
[1743408415095,5.52962,1808.5,1808.2,5.925]
[1743408415258,11.05925,1808.5,1808.2,5.98029611]
[1743408415462,5.52987,1808.4,1808.2,5.925]
[1743408415893,5.52944,1808.5,1808.2,5.925]
[1743408416091,8.52954,1808.5,1808.2,5.925]
[1743408416282,3.0,1808.5,1808.2,11.45525]
[1743408416486,0.1,1808.9,1808.8,5.52852]
[1743408416672,0.1,1808.9,1808.8,12.36139849]
[1743408416873,0.1,1808.9,1808.8,12.30612]
[1743408418172,5.62517,1809.9,1809.4,0.7716]
[1743408418378,5.52554,1809.8,1809.5,6.018]
[1743408418683,5.52554,1809.8,1809.5,6.07325513]
[1743408418876,0.1,1809.9,1809.5,6.07325513]
[1743408419079,5.52563,1809.8,1809.5,6.018]
[1743408419701,5.52581,1809.7,1809.5,6.018]
[1743408419864,5.52563,1809.8,1809.5,6.018]
[1743408420195,0.1,1809.9,1809.5,6.018]
[1743408420398,5.52638,1809.5,1809.4,6.007]
[1743408420899,8.52638,1809.5,1809.4,6.007]
[1743408421263,0.1,1809.9,1809.6,5.52603]
[1743408421494,5.52578,1809.7,1809.4,6.7681]
[1743408421674,5.62543,1809.9,1809.5,5.52626]
[1743408421875,5.62543,1809.9,1809.6,0.05525331]
[1743408422094,0.1,1809.9,1809.6,5.58129331]
[1743408422598,0.1,1809.9,1809.6,5.52604]
[1743408422804,0.1,1809.9,1809.7,5.52564]
[1743408423113,0.1,1809.9,1809.8,12.32857]
[1743408423796,8.62527,1809.9,1809.8,6.05]
[1743408424200,5.52635,1809.6,1809.5,6.051]
[1743408424528,0.1,1809.9,1809.7,5.52577]
[1743408424668,0.1,1809.9,1809.8,5.5807185]
[1743408424869,0.1,1809.9,1809.8,6.83657]
[1743408425099,0.1,1809.9,1809.8,6.89179944]
[1743408425328,0.1,1809.9,1809.8,21.33657]
[1743408425622,0.1,1809.9,1809.8,20.78657]
[1743408425899,0.1,1809.9,1809.8,12.40457]
[1743408426300,0.1,1809.9,1809.8,26.90457]
[1743408426605,0.1,1809.9,1809.8,27.45457]
[1743408426908,0.1,1809.9,1809.8,26.90457]
[1743408427399,5.62215,1810.9,1810.4,5.52361]
[1743408427574,5.5227,1810.8,1810.5,6.121]
[1743408427910,5.5227,1810.8,1810.6,0.05522469]
[1743408428320,0.1,1810.9,1810.5,5.67622469]
[1743408428612,5.52242,1810.8,1810.5,5.67622469]
[1743408428798,5.62212,1810.9,1810.5,5.67622469]
[1743408429203,11.14448,1810.9,1810.5,11.19945469]
[1743408429524,0.1,1810.9,1810.8,5.52242]
[1743408429680,0.1,1810.9,1810.8,6.28352]
[1743408430007,0.1,1810.9,1810.8,6.33872422]
[1743408430212,0.1,1810.9,1810.8,0.7611]
[1743408430409,0.1,1810.9,1810.6,6.173]
[1743408430614,0.1,1810.9,1810.8,5.52242]
[1743408430778,0.1,1810.9,1810.7,5.52253]
[1743408430978,0.1,1810.9,1810.6,17.21885]
[1743408431217,0.1,1810.9,1810.7,5.57784588]
[1743408431410,0.1,1810.9,1810.8,6.28352]
[1743408431631,0.1,1810.9,1810.8,20.78352]
[1743408432213,0.0027201,1811.5,1811.3,0.7611]
[1743408432411,0.0027201,1811.5,1811.4,6.189]
[1743408433411,0.0027201,1811.5,1811.4,11.70959]
[1743408434701,5.52083,1811.4,1811.1,31.886]
[1743408434914,8.52083,1811.4,1811.3,6.19]
[1743408435287,8.57605886,1811.4,1811.3,6.19]
[1743408435819,5.5212,1811.2,1811.1,31.886]
[1743408435987,6.3144,1811.2,1811.1,31.886]
[1743408436188,8.5215,1811.1,1811.0,6.189]
[1743408437196,14.0432,1811.1,1810.7,11.70058]
[1743408437708,8.5215,1811.1,1810.8,5.57758748]
[1743408438093,3.0,1811.1,1810.9,5.52202]
[1743408438297,6.37155896,1811.5,1811.1,5.52136]
[1743408438624,6.37155896,1811.5,1810.5,6.196]
[1743408438625,0.7833,1811.3,1810.5,6.196]
[1743408438825,3.0,1811.2,1810.9,5.52189]
[1743408439133,3.0,1811.1,1811.0,6.203]
[1743408439417,8.5215,1811.1,1811.0,6.203]
[1743408439620,5.5219,1811.0,1810.7,6.225]
[1743408439918,5.52242,1810.8,1810.7,6.225]
[1743408440086,5.52242,1810.8,1810.6,14.55522452]
[1743408440286,5.52242,1810.8,1810.7,6.233]
[1743408440498,11.82789,1810.9,1810.7,6.233]
[1743408440700,8.83283772,1810.9,1809.7,0.7569]
[1743408440894,3.7833,1810.5,1810.2,5.52412]
[1743408441138,5.52276,1810.7,1810.3,26.27193]
[1743408441337,8.52288,1810.7,1810.3,26.27189]
[1743408441651,3.0,1810.7,1810.4,11.047]
[1743408441841,3.0,1810.9,1810.6,5.52283]
[1743408441995,0.7833,1811.0,1810.7,5.52251]
[1743408442203,0.7833,1811.2,1810.9,5.52201]
[1743408442506,5.52181,1811.1,1810.8,6.253]
[1743408442813,5.52194,1811.0,1810.8,6.253]
[1743408443027,3.0,1811.1,1810.8,11.7753]
[1743408443227,8.52157,1811.1,1810.8,11.7753]
[1743408443428,5.52181,1811.0,1810.8,6.253]
[1743408443742,5.5212,1811.2,1810.8,11.77531]
[1743408443915,11.04344,1811.1,1810.8,6.253]
[1743408444110,11.04347,1811.1,1810.8,6.253]
[1743408444413,5.52185,1811.0,1810.8,6.253]
[1743408444613,5.5212,1811.2,1810.8,11.77532]
[1743408444813,8.52092,1811.3,1810.9,5.52182]
[1743408445045,5.5212,1811.2,1810.8,11.77531]
[1743408445247,5.5212,1811.2,1810.9,5.52202]
[1743408445451,5.5212,1811.2,1810.8,11.7753]
[1743408445651,3.0,1811.3,1810.8,6.253]
[1743408445856,5.52192,1811.0,1810.8,6.253]
[1743408446056,5.52211,1810.9,1810.8,6.253]
[1743408446256,5.52192,1811.0,1810.8,6.253]
[1743408446556,5.52154,1811.1,1810.8,6.30821778]
[1743408446847,5.52154,1811.1,1810.8,11.77539]
[1743408447039,5.52191,1811.0,1810.8,6.253]
[1743408447452,5.52211,1810.9,1810.8,6.253]
[1743408448031,8.52195,1811.0,1810.8,6.253]
[1743408448247,5.52211,1810.9,1810.8,6.253]
[1743408448631,8.52195,1811.0,1810.8,6.253]
[1743408448949,5.52211,1810.9,1810.6,5.52289]